[Event "DVM U12 2024"]
[Site "Heidelberg"]
[Date "2024.12.29"]
[Round "6"]
[White "Hübler, Lennis"]
[Black "Tu, Tiffany"]
[Result "0-1"]
[ECO "C47"]
[WhiteElo "1261"]
[BlackElo "1670"]
[Annotator "NA"]
[PlyCount "99"]
[EventDate "2024.12.23"]
[EventType "team-tourn"]
[EventRounds "7"]
[EventCountry "GER"]
[SourceTitle "playchess.com"]
[Source "ChessBase"]
[SourceQuality "1"]
[TimeControl "40/5400+30:1800+30"]

1. e4 {[%emt 0:00:04]} e5 {[%emt 0:00:10]} 2. Nf3 {[%emt 0:00:08]} Nc6 {[%emt 0:00:06]} 3. Nc3 {[%emt 0:00:20]} Nf6 {[%emt 0:00:10]} 4. a3 {[%emt 0:00:24]} d5 {[%emt 0:06:12]} 5. exd5 {[%emt 0:00:26]} Nxd5 {[%emt 0:00:15]} 6. Bb5 {[%emt 0:01:05]} Nxc3 {[%emt 0:01:11]} 7. bxc3 {[%emt 0:00:22]} Bd6 {[%emt 0:00:28]} 8. d3 {[%emt 0:00:29]} O-O {[%emt 0:00:48]} 9. O-O {[%emt 0:00:20]} Bg4 {[%emt 0:01:50]} 10. h3 {[%emt 0:01:22]} Bh5 {[%emt 0:00:38]} 11. Re1 {[%emt 0:00:38]} Qf6 {[%emt 0:02:03]} 12. Bg5 {[%emt 0:04:30]} Bxf3 {[%emt 0:02:27]} 13. Bxf6 {[%emt 0:04:22]} Bxd1 {[%emt 0:00:09]} 14. Bxg7 {[%emt 0:00:55]} Kxg7 {[%emt 0:00:12]} 15. Rexd1 {[%emt 0:00:24]} Ne7 {[%emt 0:00:38]} 16. a4 {[%emt 0:00:54]} c6 {[%emt 0:00:23]} 17. Bc4 {[%emt 0:00:35]} Nd5 {[%emt 0:00:31]} 18. Bxd5 {[%emt 0:01:15]} cxd5 {[%emt 0:00:10]} 19. Rab1 {[%emt 0:00:44]} b6 {[%emt 0:00:20]} 20. Re1 {[%emt 0:02:36]} Rac8 {[%emt 0:00:21]} 21. Rb3 {[%emt 0:02:19]} f5 {[%emt 0:00:46]} 22. Re2 {[%emt 0:06:18]} e4 {[%emt 0:02:11]} 23. g3 {[%emt 0:01:04]} Be5 {[%emt 0:03:01]} 24. d4 {[%emt 0:01:03]} Bf6 {[%emt 0:00:25]} 25. Kg2 {[%emt 0:01:10]} Kg6 {[%emt 0:03:08]} 26. h4 {[%emt 0:00:38]} Rc4 {[%emt 0:00:46]} 27. Ra3 {[%emt 0:00:39]} Be7 {[%emt 0:00:18]} 28. Rb3 {[%emt 0:03:09]} Rxa4 {[%emt 0:00:24]} 29. Rb5 {[%emt 0:02:56]} Rd8 {[%emt 0:00:22]} 30. Rb3 {[%emt 0:00:09]} h5 {[%emt 0:00:43]} 31. f4 {[%emt 0:02:51]} Rc4 {[%emt 0:00:27]} 32. Re3 {[%emt 0:01:40]} Rd6 {[%emt 0:01:05]} 33. Kf2 {[%emt 0:00:13]} a6 {[%emt 0:01:08]} 34. Ke2 {[%emt 0:00:24]} Rdc6 {[%emt 0:01:16]} 35. Kd2 {[%emt 0:00:24]} a5 {[%emt 0:01:18]} 36. Rb1 {[%emt 0:03:38]} Bd8 {[%emt 0:03:08]} 37. Rb2 {[%emt 0:01:12]} Kf6 {[%emt 0:00:40]} 38. Rb1 {[%emt 0:00:24]} Ke6 {[%emt 0:00:06]} 39. Rb2 {[%emt 0:00:09]} Rc8 {[%emt 0:00:14]} 40. Rb3 {[%emt 0:00:34]} Ra8 {[%emt 0:02:21]} 41. Re1 {[%emt 0:30:47]} Ra4 {[%emt 0:30:59]} 42. Reb1 {[%emt 0:00:33]} Ra6 {[%emt 0:02:21]} 43. R3b2 {[%emt 0:01:07]} Rc4 {[%emt 0:02:10]} 44. Ra2 {[%emt 0:00:30]} Rc7 {[%emt 0:01:26]} 45. Rb5 {[%emt 0:01:13]} Rg7 {[%emt 0:00:36]} 46. Rb1 {[%emt 0:03:47]} Rxg3 {[%emt 0:01:00]} 47. Rh1 {[%emt 0:00:42]} Bc7 {[%emt 0:00:45]} 48. Raa1 {[%emt 0:01:23]} Bxf4+ {[%emt 0:00:59]} 49. Ke2 {[%emt 0:00:38]} Rxc3 {[%emt 0:00:47]} 50. Rac1 {[%emt 0:00:00]} 0-1

[Event "DVM U12 2024"]
[Site "Heidelberg"]
[Date "2024.12.29"]
[Round "6"]
[White "Midianyi, Matvii"]
[Black "Capurro, Mateo"]
[Result "1/2-1/2"]
[ECO "D55"]
[WhiteElo "1240"]
[BlackElo "956"]
[Annotator "NA RC"]
[PlyCount "125"]
[EventDate "2024.12.23"]
[EventType "team-tourn"]
[EventRounds "7"]
[EventCountry "GER"]
[SourceTitle "playchess.com"]
[Source "ChessBase"]
[SourceQuality "1"]
[TimeControl "40/5400+30:1800+30"]

1. d4 {[%emt 0:00:31]} d5 {[%emt 0:00:07]} 2. c4 {[%emt 0:00:33]} e6 {[%emt 0:00:13]} 3. Nc3 {[%emt 0:00:36]} Nf6 {[%emt 0:00:10]} 4. Nf3 {[%emt 0:01:12]} c5 {[%emt 0:01:28]} 5. Bg5 {[%emt 0:02:01]} Be7 {[%emt 0:02:12]} 6. e3 {[%emt 0:02:42]} O-O {[%emt 0:02:19]} 7. Bd3 {[%emt 0:01:30]} b6 {[%emt 0:00:00]} 8. O-O {[%emt 0:02:06]} Bb7 {[%emt 0:00:00]} 9. Qc2 {[%emt 0:01:20]} h6 {[%emt 0:00:22]} 10. Bxf6 {[%emt 0:01:40]} Bxf6 {[%emt 0:00:17]} 11. Ne5 {[%emt 0:01:50]} Bxe5 {[%emt 0:00:25]} 12. dxe5 {[%emt 0:00:16]} Qg5 {[%emt 0:00:26]} 13. f4 {[%emt 0:02:14]} Qd8 {[%emt 0:01:54]} 14. Nb5 {[%emt 0:01:10]} dxc4 {[%emt 0:02:02]} 15. Bxc4 {[%emt 0:05:00]} Qe7 {[%emt 0:03:51]} 16. Nd6 {[%emt 0:00:00]} Bc6 {[%emt 0:00:50]} 17. Bd3 {[%emt 0:00:00]} f6 {[%emt 0:00:53]} 18. Bh7+ {[%emt 0:01:59]} Kh8 {[%emt 0:00:50]} 19. Qg6 {[%emt 0:00:45]} Nd7 {[%emt 0:01:27]} 20. Nc4 {[%emt 0:04:35]} Qf7 {[%emt 0:03:16]} 21. Qc2 {[%emt 0:00:41]} f5 {[%emt 0:07:01]} 22. Nd6 {[%emt 0:01:07]} Qh5 {[%emt 0:01:33]} 23. e4 {[%emt 0:01:48]} Kxh7 {[%emt 0:01:22]} 24. exf5 {[%emt 0:01:57]} exf5 {[%emt 0:03:03]} 25. e6 {[%emt 0:04:37]} Nf6 {[%emt 0:02:15]} 26. Nxf5 {[%emt 0:04:17]} Be4 {[%emt 0:01:08]} 27. Qc4 {[%emt 0:05:30]} Qxf5 {[%emt 0:01:43]} 28. Rfe1 {[%emt 0:01:00]} Bd5 {[%emt 0:01:22]} 29. Qe2 {[%emt 0:01:26]} Bxe6 {[%emt 0:01:03]} 30. Qxe6 {[%emt 0:00:17]} Qxe6 {[%emt 0:00:09]} 31. Rxe6 {[%emt 0:00:04]} Nd5 {[%emt 0:00:11]} 32. g3 {[%emt 0:00:57]} Rfe8 {[%emt 0:00:56]} 33. Rd6 {[%emt 0:00:45]} Rad8 {[%emt 0:00:13]} 34. Rc6 {[%emt 0:03:52]} Nb4 {[%emt 0:00:39]} 35. Rc7 {[%emt 0:05:49]} Nc2 {[%emt 0:01:28]} 36. Rc1 {[%emt 0:03:10]} Re1+ {[%emt 0:00:06]} 37. Rxe1 {[%emt 0:03:47]} Nxe1 {[%emt 0:01:56]} 38. Rxa7 {[%emt 0:01:55]} Nd3 {[%emt 0:01:37]} 39. b3 {[%emt 0:05:00]} Rc8 {[%emt 0:01:40]} 40. Ra6 {[%emt 0:00:36]} Nb4 {[%emt 0:00:23]} 41. Ra7 {[%emt 0:31:00]} c4 {[%emt 0:31:02]} 42. bxc4 {[%emt 0:02:46]} Rxc4 {[%emt 0:00:08]} 43. a3 {[%emt 0:00:16]} Nc2 {[%emt 0:00:32]} 44. f5 {[%emt 0:01:20]} Rc6 {[%emt 0:01:12]} 45. Kf2 {[%emt 0:00:21]} h5 {[%emt 0:00:41]} 46. h3 {[%emt 0:00:14]} Kh6 {[%emt 0:00:07]} 47. h4 {[%emt 0:00:36]} g6 {[%emt 0:00:09]} 48. fxg6 {[%emt 0:02:11]} Kxg6 {[%emt 0:00:07]} 49. Kf3 {[%emt 0:00:23]} Nd4+ {[%emt 0:00:53]} 50. Kf4 {[%emt 0:00:12]} Ne6+ {[%emt 0:01:02]} 51. Ke5 {[%emt 0:00:20]} Nd8 {[%emt 0:00:57]} 52. Ra6 {[%emt 0:00:17]} Nf7+ {[%emt 0:00:57]} 53. Kf4 {[%emt 0:00:29]} Nd6 {[%emt 0:00:13]} 54. a4 {[%emt 0:00:16]} Nb7 {[%emt 0:00:54]} 55. g4 {[%emt 0:00:48]} hxg4 {[%emt 0:00:17]} 56. Kxg4 {[%emt 0:01:04]} Nc5 {[%emt 0:01:00]} 57. h5+ {[%emt 0:00:32]} Kh6 {[%emt 0:00:08]} 58. Ra8 {[%emt 0:00:37]} Rc7 {[%emt 0:00:30]} 59. a5 {[%emt 0:00:42]} bxa5 {[%emt 0:00:13]} 60. Rxa5 {[%emt 0:01:07]} Rg7+ {[%emt 0:00:09]} 61. Kh4 {[%emt 0:01:23]} Nd3 {[%emt 0:01:51]} 62. Ra6+ {[%emt 0:02:19]} Kh7 {[%emt 0:00:05]} 63. h6 {[%emt 0:00:27]} 1/2-1/2

[Event "DVM U12 2024"]
[Site "Heidelberg"]
[Date "2024.12.29"]
[Round "6"]
[White "Lieberknecht, Pascal"]
[Black "Botvinnik, Julius"]
[Result "0-1"]
[ECO "C50"]
[WhiteElo "1212"]
[BlackElo "1700"]
[Annotator "NA"]
[PlyCount "46"]
[EventDate "2024.12.23"]
[EventType "team-tourn"]
[EventRounds "7"]
[EventCountry "GER"]
[SourceTitle "playchess.com"]
[Source "ChessBase"]
[SourceQuality "1"]
[TimeControl "40/5400+30:1800+30"]

1. e4 {[%emt 0:00:01]} e5 {[%emt 0:00:06]} 2. Nf3 {[%emt 0:00:05]} Nc6 {[%emt 0:00:09]} 3. Bc4 {[%emt 0:00:06]} Bc5 {[%emt 0:00:15]} 4. O-O {[%emt 0:00:07]} Nf6 {[%emt 0:00:24]} 5. d3 {[%emt 0:00:05]} d6 {[%emt 0:00:18]} 6. h3 {[%emt 0:00:13]} h6 {[%emt 0:00:20]} 7. Nc3 {[%emt 0:01:36]} O-O {[%emt 0:01:05]} 8. Be3 {[%emt 0:00:30]} Bb6 {[%emt 0:00:19]} 9. a3 {[%emt 0:02:36]} Be6 {[%emt 0:00:16]} 10. Bxe6 {[%emt 0:04:42]} fxe6 {[%emt 0:00:34]} 11. Ne2 {[%emt 0:03:00]} Qe8 {[%emt 0:03:45]} 12. Ng3 {[%emt 0:00:30]} Qg6 {[%emt 0:00:54]} 13. Nh4 {[%emt 0:00:36]} Qf7 {[%emt 0:01:04]} 14. Qd2 {[%emt 0:01:51]} g5 {[%emt 0:04:33]} 15. Nf3 {[%emt 0:00:10]} Nh5 {[%emt 0:01:18]} 16. Nh2 {[%emt 0:02:33]} Nf4 {[%emt 0:01:20]} 17. Ng4 {[%emt 0:00:43]} Kh7 {[%emt 0:01:37]} 18. Rae1 {[%emt 0:01:17]} Ne7 {[%emt 0:01:07]} 19. Nh2 {[%emt 0:00:34]} Neg6 {[%emt 0:00:54]} 20. Nf3 {[%emt 0:00:39]} Nxh3+ {[%emt 0:00:40]} 21. gxh3 {[%emt 0:00:49]} Qxf3 {[%emt 0:00:26]} 22. Kh2 {[%emt 0:02:42]} Nh4 {[%emt 0:00:42]} 23. Rg1 {[%emt 0:00:41]} Qf7 {[%emt 0:01:55]} 0-1

[Event "DVM U12 2024"]
[Site "Heidelberg"]
[Date "2024.12.29"]
[Round "6"]
[White "Meller, Nils"]
[Black "Podousov, Andrii"]
[Result "1-0"]
[ECO "A48"]
[WhiteElo "1024"]
[BlackElo "1105"]
[Annotator "NA RC"]
[PlyCount "44"]
[EventDate "2024.12.23"]
[EventType "team-tourn"]
[EventRounds "7"]
[EventCountry "GER"]
[SourceTitle "playchess.com"]
[Source "ChessBase"]
[SourceQuality "1"]
[TimeControl "40/5400+30:1800+30"]

1. d4 {[%emt 0:00:09]} Nf6 {[%emt 0:00:10]} 2. Bf4 {[%emt 0:00:23]} g6 {[%emt 0:00:10]} 3. e3 {[%emt 0:00:33]} Bg7 {[%emt 0:00:08]} 4. Nf3 {[%emt 0:00:35]} d6 {[%emt 0:00:21]} 5. Be2 {[%emt 0:00:25]} Nbd7 {[%emt 0:00:12]} 6. h3 {[%emt 0:00:31]} O-O {[%emt 0:00:14]} 7. O-O {[%emt 0:00:49]} Qe8 {[%emt 0:00:28]} 8. Bh2 {[%emt 0:01:12]} e5 {[%emt 0:00:17]} 9. c4 {[%emt 0:01:18]} b6 {[%emt 0:01:16]} 10. Nc3 {[%emt 0:02:05]} Bb7 {[%emt 0:00:45]} 11. Re1 {[%emt 0:02:18]} a6 {[%emt 0:02:56]} 12. a4 {[%emt 0:01:50]} e4 {[%emt 0:02:38]} 13. Nd2 {[%emt 0:01:19]} Rc8 {[%emt 0:08:36]} 14. a5 {[%emt 0:05:07]} d5 {[%emt 0:04:55]} 15. cxd5 {[%emt 0:03:49]} Bxd5 {[%emt 0:01:33]} 16. Nxd5 {[%emt 0:00:24]} Nxd5 {[%emt 0:00:05]} 17. Bxa6 {[%emt 0:00:48]} Ra8 {[%emt 0:01:47]} 18. Bb7 {[%emt 0:00:47]} Nb4 {[%emt 0:03:00]} 19. Bxa8 {[%emt 0:01:05]} Nd3 {[%emt 0:00:07]} 20. Re2 {[%emt 0:01:23]} Qxa8 {[%emt 0:01:43]} 21. axb6 {[%emt 0:00:40]} Qc6 {[%emt 0:00:30]} 22. bxc7 {[%emt 0:02:26]} Qxc7 {[%emt 0:00:47]} 1-0

[Event "DVM U12 2024"]
[Site "Heidelberg"]
[Date "2024.12.29"]
[Round "6"]
[White "Hübler, Leonas"]
[Black "Gora, Jan"]
[Result "0-1"]
[ECO "C50"]
[WhiteElo "920"]
[BlackElo "2047"]
[Annotator "NA"]
[PlyCount "69"]
[EventDate "2024.12.23"]
[EventType "team-tourn"]
[EventRounds "7"]
[EventCountry "GER"]
[SourceTitle "playchess.com"]
[Source "ChessBase"]
[SourceQuality "1"]
[TimeControl "40/5400+30:1800+30"]

1. e4 {[%emt 0:00:03]} e5 {[%emt 0:00:07]} 2. Nf3 {[%emt 0:00:09]} Nc6 {[%emt 0:00:09]} 3. Bc4 {[%emt 0:00:18]} Bc5 {[%emt 0:00:16]} 4. O-O {[%emt 0:00:26]} d6 {[%emt 0:00:13]} 5. Nc3 {[%emt 0:00:47]} Nf6 {[%emt 0:00:25]} 6. d3 {[%emt 0:00:23]} h6 {[%emt 0:00:14]} 7. Be3 {[%emt 0:00:29]} Bg4 {[%emt 0:00:34]} 8. h3 {[%emt 0:00:00]} Be6 {[%emt 0:00:16]} 9. Bxe6 {[%emt 0:00:20]} fxe6 {[%emt 0:00:14]} 10. Bxc5 {[%emt 0:00:09]} dxc5 {[%emt 0:00:30]} 11. a3 {[%emt 0:02:25]} Qe7 {[%emt 0:00:28]} 12. Re1 {[%emt 0:01:26]} O-O-O {[%emt 0:00:23]} 13. Nb5 {[%emt 0:01:35]} g5 {[%emt 0:00:40]} 14. Nd2 {[%emt 0:01:50]} Rhg8 {[%emt 0:00:47]} 15. Nc4 {[%emt 0:03:05]} g4 {[%emt 0:00:21]} 16. b4 {[%emt 0:01:38]} gxh3 {[%emt 0:00:37]} 17. Ne3 {[%emt 0:01:16]} Qg7 {[%emt 0:01:54]} 18. Qf3 {[%emt 0:00:56]} Nd4 {[%emt 0:00:43]} 19. Nxd4 {[%emt 0:00:19]} cxd4 {[%emt 0:00:15]} 20. Nf1 {[%emt 0:00:51]} hxg2 {[%emt 0:00:32]} 21. Nh2 {[%emt 0:00:22]} Rdf8 {[%emt 0:00:34]} 22. a4 {[%emt 0:03:50]} Nd7 {[%emt 0:00:20]} 23. Qd1 {[%emt 0:00:45]} Qg5 {[%emt 0:00:53]} 24. a5 {[%emt 0:01:25]} h5 {[%emt 0:00:43]} 25. a6 {[%emt 0:00:26]} b6 {[%emt 0:00:16]} 26. Nf3 {[%emt 0:01:01]} Qh6 {[%emt 0:00:35]} 27. Qd2 {[%emt 0:01:55]} Qh7 {[%emt 0:00:23]} 28. Nh4 {[%emt 0:00:29]} Qe7 {[%emt 0:00:47]} 29. Nxg2 {[%emt 0:00:17]} Qg7 {[%emt 0:00:31]} 30. Kf1 {[%emt 0:00:54]} Qxg2+ {[%emt 0:00:36]} 31. Ke2 {[%emt 0:00:21]} Rxf2+ {[%emt 0:01:14]} 32. Kd1 {[%emt 0:00:29]} Rxd2+ {[%emt 0:00:24]} 33. Kc1 {[%emt 0:00:20]} Rxc2+ {[%emt 0:00:19]} 34. Kb1 {[%emt 0:00:16]} Rb2+ {[%emt 0:00:18]} 35. Kc1 {[%emt 0:01:01]} 0-1

[Event "DVM U12 2024"]
[Site "Heidelberg"]
[Date "2024.12.29"]
[Round "6"]
[White "Ünal, Malik Mehmet"]
[Black "Riebienkov, Mark"]
[Result "1/2-1/2"]
[ECO "C50"]
[WhiteElo "831"]
[BlackElo "1269"]
[Annotator "NA"]
[PlyCount "67"]
[EventDate "2024.12.23"]
[EventType "team-tourn"]
[EventRounds "7"]
[EventCountry "GER"]
[SourceTitle "playchess.com"]
[Source "ChessBase"]
[SourceQuality "1"]
[TimeControl "40/5400+30:1800+30"]

1. e4 {[%emt 0:00:10]} e5 {[%emt 0:00:05]} 2. Nf3 {[%emt 0:00:14]} Nc6 {[%emt 0:00:49]} 3. Bc4 {[%emt 0:00:33]} Nf6 {[%emt 0:02:02]} 4. Nc3 {[%emt 0:00:32]} Bc5 {[%emt 0:01:23]} 5. d3 {[%emt 0:00:46]} O-O {[%emt 0:01:34]} 6. Bg5 {[%emt 0:00:56]} Bb4 {[%emt 0:00:44]} 7. O-O {[%emt 0:01:48]} Bxc3 {[%emt 0:00:45]} 8. bxc3 {[%emt 0:01:41]} d6 {[%emt 0:00:11]} 9. d4 {[%emt 0:01:41]} exd4 {[%emt 0:01:01]} 10. cxd4 {[%emt 0:00:57]} Bg4 {[%emt 0:01:17]} 11. Rb1 {[%emt 0:03:07]} Rb8 {[%emt 0:02:19]} 12. d5 {[%emt 0:04:00]} Ne5 {[%emt 0:00:46]} 13. Be2 {[%emt 0:02:43]} Bxf3 {[%emt 0:05:18]} 14. Bxf3 {[%emt 0:00:37]} h6 {[%emt 0:01:30]} 15. Bh4 {[%emt 0:00:14]} c6 {[%emt 0:01:16]} 16. dxc6 {[%emt 0:01:09]} Nxc6 {[%emt 0:00:43]} 17. Re1 {[%emt 0:06:25]} b6 {[%emt 0:02:37]} 18. Qc1 {[%emt 0:01:08]} Re8 {[%emt 0:03:09]} 19. Qe3 {[%emt 0:03:03]} Qe7 {[%emt 0:02:55]} 20. Qd3 {[%emt 0:06:38]} Ne5 {[%emt 0:03:20]} 21. Qd4 {[%emt 0:02:13]} Rbc8 {[%emt 0:02:55]} 22. Rbc1 {[%emt 0:02:27]} Qe6 {[%emt 0:05:08]} 23. Bxf6 {[%emt 0:00:35]} Qxf6 {[%emt 0:01:15]} 24. Qd5 {[%emt 0:02:51]} Qg6 {[%emt 0:04:56]} 25. Re3 {[%emt 0:02:59]} Nxf3+ {[%emt 0:01:45]} 26. Rxf3 {[%emt 0:02:52]} Re7 {[%emt 0:04:30]} 27. Re1 {[%emt 0:01:19]} Rxc2 {[%emt 0:01:42]} 28. h3 {[%emt 0:01:29]} Qe6 {[%emt 0:01:57]} 29. Qxe6 {[%emt 0:00:33]} Rxe6 {[%emt 0:00:19]} 30. Ra3 {[%emt 0:01:05]} a5 {[%emt 0:01:57]} 31. Rb1 {[%emt 0:01:12]} Rc6 {[%emt 0:04:49]} 32. f3 {[%emt 0:00:29]} g6 {[%emt 0:02:15]} 33. Rab3 {[%emt 0:00:44]} Rc2 {[%emt 0:04:23]} 34. Ra1 {[%emt 0:01:57]} 1/2-1/2